[Event "Titled Tuesday Blitz December 13 Late 2022"]
[White "Curtis, John"]
[Black "Adewumi, Tanitoluwa"]
[WhiteFideId "3200256"]
[BlackFideId "30966396"]
[WhiteElo "2203"]
[BlackElo "2469"]
[Result "0-1"]
[Round "07"]
[TimeControl "180+1"]
[Date "2022.12.14"]
[WhiteClock "0:00:17"]
[BlackClock "0:00:10"]

1. e4 {[%clk 0:03:00]}  c5 {[%clk 0:02:26]} 2. Nf3 {[%clk 0:02:58]}  e6 {[%clk 0:02:24]} 3. d4 {[%clk 0:02:58]}  cxd4 {[%clk 0:02:25]} 4. Nxd4 {[%clk 0:02:58]}  Nc6 {[%clk 0:02:25]} 5. Nc3 {[%clk 0:02:58]}  Qc7 {[%clk 0:02:26]} 6. Nxc6 {[%clk 0:02:53]}  bxc6 {[%clk 0:02:23]} 7. Bd3 {[%clk 0:02:54]}  Nf6 {[%clk 0:02:14]} 8. f4 {[%clk 0:02:50]}  d5 {[%clk 0:02:13]} 9. e5 {[%clk 0:02:49]}  Nd7 {[%clk 0:02:13]} 10. O-O {[%clk 0:02:46]}  a5 {[%clk 0:02:06]} 11. f5 {[%clk 0:02:36]}  Nxe5 {[%clk 0:02:01]} 12. fxe6 {[%clk 0:02:33]}  Bxe6 {[%clk 0:02:00]} 13. Bf4 {[%clk 0:02:23]}  Bd6 {[%clk 0:01:58]} 14. Bxe5 {[%clk 0:02:09]}  Bxe5 {[%clk 0:01:56]} 15. Qh5 {[%clk 0:02:08]}  g6 {[%clk 0:01:53]} 16. Qh6 {[%clk 0:02:02]}  O-O-O {[%clk 0:01:37]} 17. Rae1 {[%clk 0:01:47]}  Bd4+ {[%clk 0:01:31]} 18. Kh1 {[%clk 0:01:45]}  Rhe8 {[%clk 0:01:32]} 19. Ne2 {[%clk 0:01:29]}  Be5 {[%clk 0:01:21]} 20. c3 {[%clk 0:01:24]}  Bg4 {[%clk 0:01:14]} 21. Nd4 {[%clk 0:01:06]}  Bh5 {[%clk 0:01:04]} 22. a3 {[%clk 0:00:55]}  Bxh2 {[%clk 0:00:21]} 23. Nxc6 {[%clk 0:00:41]}  Rxe1 {[%clk 0:00:17]} 24. Rxe1 {[%clk 0:00:40]}  Bg3 {[%clk 0:00:09]} 25. Ba6+ {[%clk 0:00:32]}  Kd7 {[%clk 0:00:07]} 26. Re7+ {[%clk 0:00:31]}  Kxc6 {[%clk 0:00:07]} 27. Rxc7+ {[%clk 0:00:31]}  Bxc7 {[%clk 0:00:08]} 28. c4 {[%clk 0:00:18]}  dxc4 {[%clk 0:00:05]} 29. Qc1 {[%clk 0:00:12]}  Rd1+ {[%clk 0:00:05]} 30. Qxd1 {[%clk 0:00:12]}  Bxd1 {[%clk 0:00:06]} 31. Bxc4 {[%clk 0:00:12]}  f6 {[%clk 0:00:06]} 32. b4 {[%clk 0:00:11]}  axb4 {[%clk 0:00:06]} 33. axb4 {[%clk 0:00:12]}  g5 {[%clk 0:00:06]} 34. Bg8 {[%clk 0:00:12]}  h6 {[%clk 0:00:06]} 35. Kg1 {[%clk 0:00:12]}  Ba4 {[%clk 0:00:07]} 36. Bf7 {[%clk 0:00:11]}  Bb5 {[%clk 0:00:08]} 37. Be8+ {[%clk 0:00:11]}  Kb6 {[%clk 0:00:09]} 38. Bg6 {[%clk 0:00:11]}  Bd6 {[%clk 0:00:09]} 39. g4 {[%clk 0:00:10]}  Bxb4 {[%clk 0:00:10]} 40. Bf5 {[%clk 0:00:11]}  Bc5+ {[%clk 0:00:11]} 41. Kg2 {[%clk 0:00:11]}  Bc6+ {[%clk 0:00:12]} 42. Kg3 {[%clk 0:00:11]}  Kc7 {[%clk 0:00:13]} 43. Kh3 {[%clk 0:00:12]}  Bd7 {[%clk 0:00:12]} 44. Kg3 {[%clk 0:00:13]}  Bxf5 {[%clk 0:00:13]} 45. gxf5 {[%clk 0:00:13]}  h5 {[%clk 0:00:14]} 46. Kf3 {[%clk 0:00:12]}  g4+ {[%clk 0:00:12]} 47. Ke4 {[%clk 0:00:13]}  h4 {[%clk 0:00:12]} 48. Kf4 {[%clk 0:00:14]}  h3 {[%clk 0:00:12]} 49. Kg3 {[%clk 0:00:14]}  Bd6+ {[%clk 0:00:12]} 50. Kxg4 {[%clk 0:00:14]}  h2 {[%clk 0:00:12]} 51. Kh5 {[%clk 0:00:15]}  h1=Q+ {[%clk 0:00:12]} 52. Kg6 {[%clk 0:00:16]}  Be5 {[%clk 0:00:12]} 53. Kf7 {[%clk 0:00:16]}  Qh7+ {[%clk 0:00:13]} 54. Ke6 {[%clk 0:00:17]}  Qd7# {[%clk 0:00:10]} 0-1


[Site "https://www.chess.com"]

[Event "Titled Tuesday Blitz December 13 Late 2022"]
[White "Di Berardino, Diego Rafael"]
[Black "Kravtsiv, Martyn"]
[WhiteFideId "2105446"]
[BlackFideId "14113147"]
[WhiteElo "2441"]
[BlackElo "2695"]
[Result "0-1"]
[Round "07"]
[TimeControl "180+1"]
[Date "2022.12.13"]
[WhiteClock "0:00:05"]
[BlackClock "0:02:03"]

1. e4 {[%clk 0:03:00]}  e5 {[%clk 0:02:59]} 2. Nf3 {[%clk 0:02:59]}  Nc6 {[%clk 0:03:00]} 3. Bc4 {[%clk 0:02:59]}  Nf6 {[%clk 0:02:59]} 4. Ng5 {[%clk 0:02:58]}  d5 {[%clk 0:02:58]} 5. exd5 {[%clk 0:02:59]}  Na5 {[%clk 0:02:58]} 6. Bb5+ {[%clk 0:02:59]}  c6 {[%clk 0:02:59]} 7. dxc6 {[%clk 0:02:58]}  bxc6 {[%clk 0:03:00]} 8. Bd3 {[%clk 0:02:58]}  Nd5 {[%clk 0:02:53]} 9. Nf3 {[%clk 0:02:57]}  Bd6 {[%clk 0:02:51]} 10. O-O {[%clk 0:02:57]}  Nf4 {[%clk 0:02:48]} 11. Re1 {[%clk 0:02:55]}  Nxd3 {[%clk 0:02:46]} 12. cxd3 {[%clk 0:02:55]}  O-O {[%clk 0:02:47]} 13. Nxe5 {[%clk 0:02:44]}  Re8 {[%clk 0:02:45]} 14. Nc4 {[%clk 0:02:31]}  Bg4 {[%clk 0:02:33]} 15. Rxe8+ {[%clk 0:02:09]}  Qxe8 {[%clk 0:02:34]} 16. f3 {[%clk 0:02:09]}  Nxc4 {[%clk 0:02:33]} 17. dxc4 {[%clk 0:02:01]}  Qe5 {[%clk 0:02:32]} 18. fxg4 {[%clk 0:01:10]}  Qxh2+ {[%clk 0:02:31]} 19. Kf2 {[%clk 0:01:07]}  Re8 {[%clk 0:02:20]} 20. Nc3 {[%clk 0:00:49]}  Qh4+ {[%clk 0:02:14]} 21. Kf1 {[%clk 0:00:48]}  Bg3 {[%clk 0:02:14]} 22. Ne2 {[%clk 0:00:33]}  Rxe2 {[%clk 0:02:03]} 23. Kxe2 {[%clk 0:00:05]}  Qxg4+ {[%clk 0:02:03]} 0-1


[Site "https://www.chess.com"]

[Event "Titled Tuesday Blitz December 13 Late 2022"]
[White "Donskov, Anatoly"]
[Black "Thomforde-Toates, Noah"]
[WhiteFideId "24143413"]
[BlackFideId "30951992"]
[WhiteElo "2219"]
[BlackElo "2603"]
[Result "0-1"]
[Round "07"]
[TimeControl "180+1"]
[Date "2022.12.14"]
[WhiteClock "0:00:04"]
[BlackClock "0:00:18"]

1. e4 {[%clk 0:02:54]}  c5 {[%clk 0:02:57]} 2. Nf3 {[%clk 0:02:54]}  g6 {[%clk 0:02:56]} 3. d4 {[%clk 0:02:54]}  cxd4 {[%clk 0:02:56]} 4. Nxd4 {[%clk 0:02:55]}  Bg7 {[%clk 0:02:56]} 5. c4 {[%clk 0:02:55]}  Nc6 {[%clk 0:02:56]} 6. Be3 {[%clk 0:02:56]}  Nf6 {[%clk 0:02:56]} 7. Nc3 {[%clk 0:02:56]}  Ng4 {[%clk 0:02:56]} 8. Qxg4 {[%clk 0:02:56]}  Nxd4 {[%clk 0:02:56]} 9. Qd1 {[%clk 0:02:57]}  e5 {[%clk 0:02:56]} 10. Be2 {[%clk 0:02:56]}  O-O {[%clk 0:02:54]} 11. O-O {[%clk 0:02:56]}  d6 {[%clk 0:02:53]} 12. Rc1 {[%clk 0:02:54]}  Be6 {[%clk 0:02:52]} 13. b3 {[%clk 0:02:54]}  Qa5 {[%clk 0:02:50]} 14. Qd2 {[%clk 0:02:33]}  Rfc8 {[%clk 0:02:47]} 15. Rfd1 {[%clk 0:02:32]}  a6 {[%clk 0:02:41]} 16. Bf1 {[%clk 0:02:20]}  h5 {[%clk 0:02:29]} 17. Ne2 {[%clk 0:02:10]}  Qxd2 {[%clk 0:02:14]} 18. Rxd2 {[%clk 0:02:11]}  Nxe2+ {[%clk 0:02:11]} 19. Bxe2 {[%clk 0:02:12]}  Bf8 {[%clk 0:02:11]} 20. Rcd1 {[%clk 0:02:06]}  Be7 {[%clk 0:02:09]} 21. a4 {[%clk 0:02:05]}  Kf8 {[%clk 0:02:06]} 22. Bb6 {[%clk 0:01:59]}  Ke8 {[%clk 0:02:04]} 23. a5 {[%clk 0:01:58]}  Rc6 {[%clk 0:01:54]} 24. f3 {[%clk 0:01:55]}  Rac8 {[%clk 0:01:43]} 25. Kf2 {[%clk 0:01:54]}  Bh4+ {[%clk 0:01:40]} 26. g3 {[%clk 0:01:54]}  Be7 {[%clk 0:01:40]} 27. h4 {[%clk 0:01:52]}  f6 {[%clk 0:01:37]} 28. Ke3 {[%clk 0:01:45]}  Bf8 {[%clk 0:01:35]} 29. Kf2 {[%clk 0:01:45]}  Be7 {[%clk 0:01:34]} 30. Bf1 {[%clk 0:01:43]}  g5 {[%clk 0:01:34]} 31. Be2 {[%clk 0:00:58]}  gxh4 {[%clk 0:01:24]} 32. gxh4 {[%clk 0:00:58]}  f5 {[%clk 0:01:21]} 33. Rh1 {[%clk 0:00:54]}  f4 {[%clk 0:01:20]} 34. Bf1 {[%clk 0:00:38]}  Kf7 {[%clk 0:01:12]} 35. Ke1 {[%clk 0:00:33]}  Rg8 {[%clk 0:01:09]} 36. Rg2 {[%clk 0:00:33]}  Rxg2 {[%clk 0:01:00]} 37. Bxg2 {[%clk 0:00:34]}  Rc8 {[%clk 0:00:57]} 38. Bf1 {[%clk 0:00:31]}  Rg8 {[%clk 0:00:54]} 39. Ke2 {[%clk 0:00:26]}  Bf6 {[%clk 0:00:41]} 40. Ke1 {[%clk 0:00:25]}  Ke7 {[%clk 0:00:40]} 41. Bf2 {[%clk 0:00:21]}  Kd7 {[%clk 0:00:37]} 42. Kd2 {[%clk 0:00:22]}  Rc8 {[%clk 0:00:33]} 43. Kc3 {[%clk 0:00:21]}  d5 {[%clk 0:00:28]} 44. exd5 {[%clk 0:00:19]}  Bxd5 {[%clk 0:00:23]} 45. Bh3+ {[%clk 0:00:20]}  Be6 {[%clk 0:00:21]} 46. Rd1+ {[%clk 0:00:20]}  Ke7 {[%clk 0:00:22]} 47. Bxe6 {[%clk 0:00:20]}  Kxe6 {[%clk 0:00:23]} 48. Kc2 {[%clk 0:00:15]}  Rg8 {[%clk 0:00:19]} 49. Bc5 {[%clk 0:00:11]}  Rg2+ {[%clk 0:00:19]} 50. Rd2 {[%clk 0:00:10]}  Rxd2+ {[%clk 0:00:18]} 51. Kxd2 {[%clk 0:00:11]}  Bxh4 {[%clk 0:00:19]} 52. Ke2 {[%clk 0:00:11]}  Bd8 {[%clk 0:00:18]} 53. b4 {[%clk 0:00:11]}  h4 {[%clk 0:00:18]} 54. Kf1 {[%clk 0:00:11]}  Kf5 {[%clk 0:00:18]} 55. Kg2 {[%clk 0:00:09]}  e4 {[%clk 0:00:18]} 56. fxe4+ {[%clk 0:00:09]}  Kxe4 {[%clk 0:00:19]} 57. Bg1 {[%clk 0:00:08]}  f3+ {[%clk 0:00:19]} 58. Kh3 {[%clk 0:00:07]}  Kd3 {[%clk 0:00:19]} 59. b5 {[%clk 0:00:06]}  Kxc4 {[%clk 0:00:19]} 60. bxa6 {[%clk 0:00:06]}  bxa6 {[%clk 0:00:19]} 61. Bb6 {[%clk 0:00:06]}  Be7 {[%clk 0:00:18]} 62. Kh2 {[%clk 0:00:06]}  Kd3 {[%clk 0:00:18]} 63. Kg1 {[%clk 0:00:06]}  Ke2 {[%clk 0:00:18]} 64. Bc5 {[%clk 0:00:04]}  Bxc5+ {[%clk 0:00:18]} 65. Kh2 {[%clk 0:00:04]}  Bb4 {[%clk 0:00:18]} 0-1


[Site "https://www.chess.com"]

[Event "Titled Tuesday Blitz December 13 Late 2022"]
[White "Dudzinski, Pawel"]
[Black "Stanisz, Patryk"]
[WhiteFideId "1117890"]
[BlackFideId "1123106"]
[WhiteElo "2099"]
[BlackElo "2069"]
[Result "1-0"]
[Round "07"]
[TimeControl "180+1"]
[Date "2022.12.14"]
[WhiteClock "0:00:26"]
[BlackClock "0:00:01"]

1. e4 {[%clk 0:03:00]}  c5 {[%clk 0:02:56]} 2. c4 {[%clk 0:02:59]}  Nc6 {[%clk 0:02:52]} 3. Nc3 {[%clk 0:03:00]}  d6 {[%clk 0:02:36]} 4. g3 {[%clk 0:03:00]}  g6 {[%clk 0:02:36]} 5. Bg2 {[%clk 0:03:01]}  Bg7 {[%clk 0:02:37]} 6. Nge2 {[%clk 0:03:01]}  e6 {[%clk 0:02:37]} 7. Rb1 {[%clk 0:03:01]}  Nge7 {[%clk 0:02:37]} 8. a3 {[%clk 0:03:02]}  O-O {[%clk 0:02:37]} 9. b4 {[%clk 0:03:02]}  Nd4 {[%clk 0:02:36]} 10. d3 {[%clk 0:03:01]}  Rb8 {[%clk 0:02:35]} 11. Bb2 {[%clk 0:02:52]}  b6 {[%clk 0:02:35]} 12. Nb5 {[%clk 0:02:29]}  Nxb5 {[%clk 0:01:44]} 13. Bxg7 {[%clk 0:02:28]}  Kxg7 {[%clk 0:01:44]} 14. cxb5 {[%clk 0:02:27]}  cxb4 {[%clk 0:01:34]} 15. Rxb4 {[%clk 0:02:28]}  d5 {[%clk 0:01:34]} 16. O-O {[%clk 0:02:17]}  dxe4 {[%clk 0:01:34]} 17. Rd4 {[%clk 0:02:17]}  Qc7 {[%clk 0:01:32]} 18. Qa1 {[%clk 0:02:10]}  f6 {[%clk 0:01:23]} 19. Rc1 {[%clk 0:02:06]}  Qe5 {[%clk 0:01:20]} 20. dxe4 {[%clk 0:02:03]}  Kf7 {[%clk 0:01:04]} 21. f4 {[%clk 0:02:01]}  Qh5 {[%clk 0:01:02]} 22. Rd2 {[%clk 0:02:01]}  Qxb5 {[%clk 0:00:54]} 23. e5 {[%clk 0:01:50]}  f5 {[%clk 0:00:51]} 24. Rc7 {[%clk 0:01:44]}  Ba6 {[%clk 0:00:38]} 25. Rdd7 {[%clk 0:01:24]}  Rfe8 {[%clk 0:00:37]} 26. Nd4 {[%clk 0:01:14]}  Qd3 {[%clk 0:00:37]} 27. Nc6 {[%clk 0:01:03]}  Qe3+ {[%clk 0:00:19]} 28. Kh1 {[%clk 0:01:03]}  Kf8 {[%clk 0:00:10]} 29. Nxb8 {[%clk 0:00:54]}  Rxb8 {[%clk 0:00:01]} 30. Rxe7 {[%clk 0:00:54]}  Be2 {[%clk 0:00:01]} 31. Rf7+ {[%clk 0:00:51]}  Kg8 {[%clk 0:00:01]} 32. Rg7+ {[%clk 0:00:51]}  Kh8 {[%clk 0:00:02]} 33. Rxh7+ {[%clk 0:00:51]}  Kg8 {[%clk 0:00:03]} 34. Rcg7+ {[%clk 0:00:38]}  Kf8 {[%clk 0:00:03]} 35. Qb2 {[%clk 0:00:27]}  Bf3 {[%clk 0:00:01]} 36. Qb4+ {[%clk 0:00:26]} 1-0


[Site "https://www.chess.com"]

[Event "Titled Tuesday Blitz December 13 Late 2022"]
[White "Eisa Mohmood, Alkhoori"]
[Black "Vargas, Mauricio"]
[WhiteFideId "9316116"]
[BlackFideId "4404572"]
[WhiteElo "1245"]
[BlackElo "2025"]
[Result "1-0"]
[Round "07"]
[TimeControl "180+1"]
[Date "2022.12.14"]
[WhiteClock "0:00:11"]
[BlackClock "0:00:02"]

1. e4 {[%clk 0:02:50]}  c6 {[%clk 0:02:59]} 2. Nf3 {[%clk 0:02:48]}  d5 {[%clk 0:03:00]} 3. Nc3 {[%clk 0:02:48]}  dxe4 {[%clk 0:02:59]} 4. Nxe4 {[%clk 0:02:49]}  Nf6 {[%clk 0:03:00]} 5. Qe2 {[%clk 0:02:49]}  Nxe4 {[%clk 0:02:59]} 6. Qxe4 {[%clk 0:02:50]}  Qd5 {[%clk 0:03:00]} 7. Qf4 {[%clk 0:02:50]}  Qf5 {[%clk 0:02:58]} 8. Qe3 {[%clk 0:02:50]}  Qe6 {[%clk 0:02:56]} 9. d4 {[%clk 0:02:46]}  g6 {[%clk 0:02:50]} 10. Bd3 {[%clk 0:02:22]}  Bg7 {[%clk 0:02:49]} 11. h4 {[%clk 0:02:22]}  h5 {[%clk 0:02:48]} 12. Be4 {[%clk 0:02:18]}  Na6 {[%clk 0:02:45]} 13. Ng5 {[%clk 0:02:18]}  Qd6 {[%clk 0:02:15]} 14. c3 {[%clk 0:01:59]}  O-O {[%clk 0:02:14]} 15. O-O {[%clk 0:01:50]}  e5 {[%clk 0:02:09]} 16. dxe5 {[%clk 0:01:46]}  Qxe5 {[%clk 0:02:05]} 17. Re1 {[%clk 0:01:39]}  Re8 {[%clk 0:02:04]} 18. Bd2 {[%clk 0:01:23]}  Bg4 {[%clk 0:01:42]} 19. Bd3 {[%clk 0:01:14]}  Qd5 {[%clk 0:01:21]} 20. Qxe8+ {[%clk 0:01:10]}  Rxe8 {[%clk 0:01:21]} 21. Rxe8+ {[%clk 0:01:11]}  Bf8 {[%clk 0:01:19]} 22. Bxa6 {[%clk 0:01:06]}  Qxd2 {[%clk 0:01:07]} 23. Bxb7 {[%clk 0:00:48]}  Qxb2 {[%clk 0:01:05]} 24. Rd1 {[%clk 0:00:43]}  Qxb7 {[%clk 0:01:02]} 25. Rdd8 {[%clk 0:00:42]}  Qb1+ {[%clk 0:00:57]} 26. Kh2 {[%clk 0:00:41]}  Kg7 {[%clk 0:00:33]} 27. Rxf8 {[%clk 0:00:40]}  Be6 {[%clk 0:00:20]} 28. Nxe6+ {[%clk 0:00:30]}  fxe6 {[%clk 0:00:21]} 29. Rg8+ {[%clk 0:00:20]}  Kf6 {[%clk 0:00:20]} 30. f4 {[%clk 0:00:18]}  Qc1 {[%clk 0:00:18]} 31. Rdf8+ {[%clk 0:00:15]}  Ke7 {[%clk 0:00:18]} 32. Re8+ {[%clk 0:00:15]}  Kd6 {[%clk 0:00:17]} 33. Rd8+ {[%clk 0:00:11]}  Kc5 {[%clk 0:00:16]} 34. Rxg6 {[%clk 0:00:10]}  Qxf4+ {[%clk 0:00:16]} 35. g3 {[%clk 0:00:09]}  Qf2+ {[%clk 0:00:16]} 36. Kh1 {[%clk 0:00:09]}  Qf1+ {[%clk 0:00:15]} 37. Kh2 {[%clk 0:00:10]}  Qe2+ {[%clk 0:00:13]} 38. Kh1 {[%clk 0:00:09]}  Qd1+ {[%clk 0:00:10]} 39. Rxd1 {[%clk 0:00:07]}  Kc4 {[%clk 0:00:09]} 40. Rc1 {[%clk 0:00:04]}  Kd3 {[%clk 0:00:09]} 41. Rf6 {[%clk 0:00:04]}  Kd2 {[%clk 0:00:09]} 42. Rff1 {[%clk 0:00:05]}  e5 {[%clk 0:00:09]} 43. g4 {[%clk 0:00:06]}  e4 {[%clk 0:00:09]} 44. g5 {[%clk 0:00:06]}  e3 {[%clk 0:00:09]} 45. Rfe1 {[%clk 0:00:07]}  e2 {[%clk 0:00:08]} 46. g6 {[%clk 0:00:07]}  c5 {[%clk 0:00:05]} 47. g7 {[%clk 0:00:08]}  a5 {[%clk 0:00:05]} 48. g8=Q {[%clk 0:00:09]}  c4 {[%clk 0:00:01]} 49. Qg2 {[%clk 0:00:10]}  a4 {[%clk 0:00:02]} 50. Qxe2# {[%clk 0:00:11]} 1-0


[Site "https://www.chess.com"]

[Event "Titled Tuesday Blitz December 13 Late 2022"]
[White "Firouzja, Alireza"]
[Black "Sarana, Alexey"]
[WhiteFideId "12573981"]
[BlackFideId "24133795"]
[WhiteElo "2904"]
[BlackElo "2708"]
[Result "1-0"]
[Round "07"]
[TimeControl "180+1"]
[Date "2022.12.13"]
[WhiteClock "0:00:08"]
[BlackClock "0:00:06"]

1. d4 {[%clk 0:03:00]}  Nf6 {[%clk 0:02:59]} 2. c4 {[%clk 0:02:58]}  e6 {[%clk 0:02:59]} 3. Nf3 {[%clk 0:02:58]}  d5 {[%clk 0:02:59]} 4. g3 {[%clk 0:02:53]}  Bb4+ {[%clk 0:02:59]} 5. Nbd2 {[%clk 0:02:53]}  dxc4 {[%clk 0:02:53]} 6. Qa4+ {[%clk 0:02:47]}  Nc6 {[%clk 0:02:53]} 7. a3 {[%clk 0:02:47]}  Bxd2+ {[%clk 0:02:43]} 8. Bxd2 {[%clk 0:02:48]}  Qd5 {[%clk 0:02:42]} 9. Bc3 {[%clk 0:02:30]}  b5 {[%clk 0:02:24]} 10. Qd1 {[%clk 0:02:29]}  Bb7 {[%clk 0:02:15]} 11. Bg2 {[%clk 0:02:28]}  O-O {[%clk 0:01:47]} 12. O-O {[%clk 0:02:27]}  Ne7 {[%clk 0:01:45]} 13. Bb4 {[%clk 0:02:19]}  Rfe8 {[%clk 0:01:45]} 14. Re1 {[%clk 0:01:30]}  a5 {[%clk 0:01:40]} 15. Bc5 {[%clk 0:01:30]}  a4 {[%clk 0:01:32]} 16. e4 {[%clk 0:01:21]}  Qd8 {[%clk 0:01:28]} 17. Ne5 {[%clk 0:01:16]}  Ng6 {[%clk 0:01:26]} 18. Ng4 {[%clk 0:01:06]}  Nd7 {[%clk 0:01:00]} 19. Bb4 {[%clk 0:01:06]}  Rc8 {[%clk 0:00:59]} 20. Bc3 {[%clk 0:01:01]}  Nf6 {[%clk 0:00:48]} 21. h4 {[%clk 0:00:59]}  Nf8 {[%clk 0:00:31]} 22. d5 {[%clk 0:00:58]}  Nxg4 {[%clk 0:00:30]} 23. Qxg4 {[%clk 0:00:58]}  e5 {[%clk 0:00:30]} 24. f4 {[%clk 0:00:58]}  f6 {[%clk 0:00:26]} 25. fxe5 {[%clk 0:00:58]}  fxe5 {[%clk 0:00:26]} 26. Rf1 {[%clk 0:00:58]}  Qd6 {[%clk 0:00:18]} 27. Rf5 {[%clk 0:00:57]}  Rcd8 {[%clk 0:00:13]} 28. Qg5 {[%clk 0:00:37]}  h6 {[%clk 0:00:13]} 29. Qh5 {[%clk 0:00:36]}  g6 {[%clk 0:00:10]} 30. Rxf8+ {[%clk 0:00:37]}  Qxf8 {[%clk 0:00:07]} 31. Qxg6+ {[%clk 0:00:37]}  Qg7 {[%clk 0:00:07]} 32. Qh5 {[%clk 0:00:26]}  Qxg3 {[%clk 0:00:07]} 33. Rf1 {[%clk 0:00:26]}  Re7 {[%clk 0:00:05]} 34. Rf3 {[%clk 0:00:21]}  Qg7 {[%clk 0:00:05]} 35. Kh2 {[%clk 0:00:20]}  Kh7 {[%clk 0:00:05]} 36. Bh3 {[%clk 0:00:19]}  Bc8 {[%clk 0:00:04]} 37. Bxc8 {[%clk 0:00:19]}  Rxc8 {[%clk 0:00:05]} 38. Qf5+ {[%clk 0:00:19]}  Qg6 {[%clk 0:00:05]} 39. Qxc8 {[%clk 0:00:18]}  Qxe4 {[%clk 0:00:04]} 40. Qf5+ {[%clk 0:00:17]}  Qxf5 {[%clk 0:00:04]} 41. Rxf5 {[%clk 0:00:18]}  e4 {[%clk 0:00:05]} 42. Re5 {[%clk 0:00:17]}  Rxe5 {[%clk 0:00:04]} 43. Bxe5 {[%clk 0:00:18]}  e3 {[%clk 0:00:04]} 44. Kg3 {[%clk 0:00:13]}  Kg6 {[%clk 0:00:05]} 45. Kf3 {[%clk 0:00:14]}  Kf5 {[%clk 0:00:05]} 46. Bc3 {[%clk 0:00:07]}  e2 {[%clk 0:00:06]} 47. Kxe2 {[%clk 0:00:06]}  Ke4 {[%clk 0:00:06]} 48. h5 {[%clk 0:00:07]}  Kxd5 {[%clk 0:00:07]} 49. Bd2 {[%clk 0:00:07]}  c5 {[%clk 0:00:07]} 50. Bxh6 {[%clk 0:00:08]}  b4 {[%clk 0:00:08]} 51. Bc1 {[%clk 0:00:07]}  Ke6 {[%clk 0:00:08]} 52. h6 {[%clk 0:00:07]}  Kf7 {[%clk 0:00:09]} 53. Bd2 {[%clk 0:00:07]}  bxa3 {[%clk 0:00:04]} 54. bxa3 {[%clk 0:00:07]}  Kg6 {[%clk 0:00:05]} 55. Kd1 {[%clk 0:00:07]}  c3 {[%clk 0:00:06]} 56. Bc1 {[%clk 0:00:08]} 1-0


[Site "https://www.chess.com"]

[Event "Titled Tuesday Blitz December 13 Late 2022"]
[White "Floresvillar Gonzalez, Luis Migu"]
[Black "Vedder, Richard"]
[WhiteFideId "5100542"]
[BlackFideId "1004166"]
[WhiteElo "2040"]
[BlackElo "2168"]
[Result "0-1"]
[Round "07"]
[TimeControl "180+1"]
[Date "2022.12.14"]
[WhiteClock "0:01:00"]
[BlackClock "0:00:49"]

1. d4 {[%clk 0:03:00]}  d5 {[%clk 0:02:59]} 2. c3 {[%clk 0:03:01]}  Nf6 {[%clk 0:02:58]} 3. Bg5 {[%clk 0:03:01]}  e6 {[%clk 0:02:58]} 4. Nd2 {[%clk 0:03:01]}  c5 {[%clk 0:02:57]} 5. e3 {[%clk 0:03:01]}  Nc6 {[%clk 0:02:58]} 6. Bd3 {[%clk 0:03:01]}  h6 {[%clk 0:02:56]} 7. Bxf6 {[%clk 0:03:00]}  Qxf6 {[%clk 0:02:55]} 8. f4 {[%clk 0:02:59]}  cxd4 {[%clk 0:02:50]} 9. cxd4 {[%clk 0:02:58]}  Bd6 {[%clk 0:02:49]} 10. Ngf3 {[%clk 0:02:57]}  O-O {[%clk 0:02:49]} 11. O-O {[%clk 0:02:57]}  Qe7 {[%clk 0:02:36]} 12. Rc1 {[%clk 0:02:52]}  Bd7 {[%clk 0:02:36]} 13. Ne5 {[%clk 0:02:48]}  Rfc8 {[%clk 0:02:35]} 14. Qh5 {[%clk 0:02:42]}  Be8 {[%clk 0:02:35]} 15. Qg4 {[%clk 0:02:37]}  Nb4 {[%clk 0:02:26]} 16. Bb1 {[%clk 0:02:34]}  Bb5 {[%clk 0:02:20]} 17. Rfe1 {[%clk 0:02:26]}  Be8 {[%clk 0:02:11]} 18. a3 {[%clk 0:02:25]}  Nc6 {[%clk 0:02:08]} 19. Nxc6 {[%clk 0:02:19]}  Rxc6 {[%clk 0:02:05]} 20. Rxc6 {[%clk 0:02:18]}  bxc6 {[%clk 0:02:06]} 21. Nf3 {[%clk 0:02:15]}  c5 {[%clk 0:02:05]} 22. Qg3 {[%clk 0:01:49]}  Rb8 {[%clk 0:02:02]} 23. Qf2 {[%clk 0:01:49]}  c4 {[%clk 0:02:01]} 24. Qc2 {[%clk 0:01:48]}  g6 {[%clk 0:01:58]} 25. Ne5 {[%clk 0:01:47]}  Rb3 {[%clk 0:01:36]} 26. Ba2 {[%clk 0:01:35]}  Rb6 {[%clk 0:01:33]} 27. Re2 {[%clk 0:01:33]}  Qb7 {[%clk 0:01:27]} 28. h3 {[%clk 0:01:31]}  Qa6 {[%clk 0:01:18]} 29. Kh2 {[%clk 0:01:28]}  Ba4 {[%clk 0:01:11]} 30. Qb1 {[%clk 0:01:18]}  Bxa3 {[%clk 0:01:02]} 31. Nxg6 {[%clk 0:01:17]}  c3 {[%clk 0:00:54]} 32. b3 {[%clk 0:01:15]}  Qxe2 {[%clk 0:00:53]} 33. Ne5 {[%clk 0:01:00]}  c2 {[%clk 0:00:49]} 0-1


[Site "https://www.chess.com"]